[Event "Late-Titled-Tuesday-Blitz-May-14-2024"]
[Site "Chess.com"]
[Date "2024.05.14"]
[Round "9"]
[White "manitodeplomo"]
[Black "NajdorfPlayerc5"]
[Result "1-0"]
[WhiteElo "2563"]
[BlackElo "2406"]
[TimeControl "180+1"]
[EndTime "15:43:18 PDT"]
[Termination "manitodeplomo won on time"]

1. d4 {[%clk 0:03:00.9]} 1... Nf6 {[%clk 0:02:59.8]} 2. c4 {[%clk 0:02:59.7]}
2... e6 {[%clk 0:02:56.1]} 3. Nf3 {[%clk 0:02:58.2]} 3... b6 {[%clk 0:02:55.1]}
4. g3 {[%clk 0:02:57.8]} 4... Bb7 {[%clk 0:02:54.6]} 5. Bg2 {[%clk 0:02:57.3]}
5... Be7 {[%clk 0:02:54.7]} 6. Nc3 {[%clk 0:02:57.1]} 6... Ne4 {[%clk
0:02:53.3]} 7. Bd2 {[%clk 0:02:56.3]} 7... O-O {[%clk 0:02:48.2]} 8. d5 {[%clk
0:02:49.7]} 8... Nxc3 {[%clk 0:02:40.8]} 9. Bxc3 {[%clk 0:02:49.4]} 9... Bf6
{[%clk 0:02:36.2]} 10. Nd4 {[%clk 0:02:40.1]} 10... c5 {[%clk 0:01:57.3]} 11.
Nb5 {[%clk 0:02:27.8]} 11... Bxc3+ {[%clk 0:01:53.3]} 12. Nxc3 {[%clk
0:02:28.7]} 12... e5 {[%clk 0:01:50.3]} 13. O-O {[%clk 0:02:26.1]} 13... d6
{[%clk 0:01:50.4]} 14. e4 {[%clk 0:02:21.2]} 14... Nd7 {[%clk 0:01:48.2]} 15. f4
{[%clk 0:02:21.5]} 15... Qf6 {[%clk 0:01:14.4]} 16. Bh3 {[%clk 0:02:08.9]} 16...
Rad8 {[%clk 0:01:12]} 17. Qa4 {[%clk 0:01:54.2]} 17... Bc8 {[%clk 0:00:46.9]}
18. Qxa7 {[%clk 0:01:49]} 18... exf4 {[%clk 0:00:46.4]} 19. gxf4 {[%clk
0:01:39.2]} 19... Qd4+ {[%clk 0:00:44.1]} 20. Kh1 {[%clk 0:01:39.2]} 20... Qxc4
{[%clk 0:00:38.9]} 21. Rae1 {[%clk 0:01:06.7]} 21... Qa6 {[%clk 0:00:27.1]} 22.
Qc7 {[%clk 0:00:57.9]} 22... Ne5 {[%clk 0:00:17.1]} 23. Bxc8 {[%clk 0:00:46.8]}
23... Rxc8 {[%clk 0:00:18]} 24. Qxd6 {[%clk 0:00:46.8]} 24... Nc4 {[%clk
0:00:15.2]} 25. Qd7 {[%clk 0:00:41.6]} 25... Nxb2 {[%clk 0:00:14.8]} 26. e5
{[%clk 0:00:41.4]} 26... Nd3 {[%clk 0:00:13.5]} 27. Re2 {[%clk 0:00:38.1]} 27...
Qc4 {[%clk 0:00:13.5]} 28. Ne4 {[%clk 0:00:20.9]} 28... Nxe5 {[%clk 0:00:12.2]}
29. fxe5 {[%clk 0:00:09.4]} 29... Qxe2 {[%clk 0:00:11.3]} 30. Qf5 {[%clk
0:00:10]} 30... Rcd8 {[%clk 0:00:06]} 31. Nd6 {[%clk 0:00:09.4]} 31... Qd2
{[%clk 0:00:03]} 32. Qf3 {[%clk 0:00:07.3]} 32... f6 {[%clk 0:00:02.6]} 33. Nf5
{[%clk 0:00:04.7]} 33... fxe5 {[%clk 0:00:02.3]} 34. Ne7+ {[%clk 0:00:05]} 1-0

[Event "Late-Titled-Tuesday-Blitz-May-14-2024"]
[Site "Chess.com"]
[Date "2024.05.14"]
[Round "9"]
[White "noret"]
[Black "zverr1"]
[Result "0-1"]
[WhiteElo "2135"]
[BlackElo "2444"]
[TimeControl "180+1"]
[EndTime "15:43:18 PDT"]
[Termination "zverr1 won on time"]

1. e4 {[%clk 0:03:00.9]} 1... c5 {[%clk 0:02:59.9]} 2. Nf3 {[%clk 0:03:00.7]}
2... Nc6 {[%clk 0:03:00.6]} 3. d4 {[%clk 0:03:01.2]} 3... cxd4 {[%clk
0:03:01.2]} 4. Nxd4 {[%clk 0:03:02.1]} 4... Nf6 {[%clk 0:03:02.1]} 5. Nc3 {[%clk
0:03:01.6]} 5... e5 {[%clk 0:03:02.7]} 6. Ndb5 {[%clk 0:02:50.5]} 6... d6 {[%clk
0:03:02.2]} 7. Nd5 {[%clk 0:02:25]} 7... Nxd5 {[%clk 0:03:00.9]} 8. exd5 {[%clk
0:02:25.9]} 8... Nb8 {[%clk 0:03:01.4]} 9. c4 {[%clk 0:02:20.9]} 9... Be7 {[%clk
0:02:56.5]} 10. Be3 {[%clk 0:02:15.1]} 10... O-O {[%clk 0:02:49.4]} 11. Bd3
{[%clk 0:01:57]} 11... f5 {[%clk 0:02:47.8]} 12. f4 {[%clk 0:01:52.3]} 12... a6
{[%clk 0:02:38.1]} 13. Nc3 {[%clk 0:01:44]} 13... exf4 {[%clk 0:02:37.5]} 14.
Bxf4 {[%clk 0:01:42]} 14... Bg5 {[%clk 0:02:37]} 15. Bxg5 {[%clk 0:01:33.5]}
15... Qxg5 {[%clk 0:02:37.9]} 16. O-O {[%clk 0:01:33.5]} 16... Nd7 {[%clk
0:02:37.2]} 17. Be2 {[%clk 0:01:12.3]} 17... Ne5 {[%clk 0:02:31.4]} 18. Qd4
{[%clk 0:01:11.9]} 18... Qf6 {[%clk 0:02:18.3]} 19. Rad1 {[%clk 0:01:09.2]}
19... Bd7 {[%clk 0:02:14.6]} 20. Kh1 {[%clk 0:01:07]} 20... Rac8 {[%clk
0:02:07.9]} 21. b4 {[%clk 0:01:00.9]} 21... Ng6 {[%clk 0:01:51.7]} 22. Qd3
{[%clk 0:00:43.5]} 22... Qg5 {[%clk 0:01:37.2]} 23. Qd4 {[%clk 0:00:39.5]} 23...
Rfe8 {[%clk 0:01:01.6]} 24. Bd3 {[%clk 0:00:31.8]} 24... Re5 {[%clk 0:00:56]}
25. Ne2 {[%clk 0:00:18.8]} 25... Rce8 {[%clk 0:00:48.3]} 26. Nf4 {[%clk
0:00:18.4]} 26... Qf6 {[%clk 0:00:42.1]} 27. Qf2 {[%clk 0:00:15.3]} 27... Re3
{[%clk 0:00:37.6]} 28. Nh5 {[%clk 0:00:13.8]} 28... Qg5 {[%clk 0:00:36.1]} 29.
Bxf5 {[%clk 0:00:12.5]} 29... Re2 {[%clk 0:00:31.6]} 30. Be6+ {[%clk 0:00:07.8]}
30... Kh8 {[%clk 0:00:21.6]} 31. Qxe2 {[%clk 0:00:06.2]} 31... Bxe6 {[%clk
0:00:19.6]} 32. dxe6 {[%clk 0:00:05]} 32... Ne5 {[%clk 0:00:20.1]} 33. Ng3
{[%clk 0:00:02.9]} 33... h6 {[%clk 0:00:19.3]} 34. Qf2 {[%clk 0:00:02.7]} 34...
Ng6 {[%clk 0:00:17.6]} 35. Rxd6 {[%clk 0:00:02.1]} 35... Qe5 {[%clk 0:00:17.2]}
36. Rd7 {[%clk 0:00:01.6]} 36... Rxe6 {[%clk 0:00:18]} 37. Qf7 {[%clk
0:00:00.8]} 37... Kh7 {[%clk 0:00:18.9]} 38. Nh5 {[%clk 0:00:00.2]} 38... Qg5
{[%clk 0:00:19.8]} 39. Nxg7 {[%clk 0:00:00.4]} 39... Re7 {[%clk 0:00:19.3]} 40.
Rxe7 {[%clk 0:00:00.2]} 40... Ne5 {[%clk 0:00:20.2]} 0-1

[Event "Late-Titled-Tuesday-Blitz-May-14-2024"]
[Site "Chess.com"]
[Date "2024.05.14"]
[Round "9"]
[White "Grischuk"]
[Black "DrVelja"]
[Result "0-1"]
[WhiteElo "3107"]
[BlackElo "2921"]
[TimeControl "180+1"]
[EndTime "15:43:19 PDT"]
[Termination "DrVelja won by resignation"]

1. d4 {[%clk 0:02:37.9]} 1... d5 {[%clk 0:02:56]} 2. c4 {[%clk 0:02:37.7]} 2...
c6 {[%clk 0:02:56.6]} 3. Nf3 {[%clk 0:02:37.2]} 3... Nf6 {[%clk 0:02:56.5]} 4.
cxd5 {[%clk 0:02:37.5]} 4... cxd5 {[%clk 0:02:57.4]} 5. Nc3 {[%clk 0:02:38]}
5... Nc6 {[%clk 0:02:57.9]} 6. Bf4 {[%clk 0:02:38.7]} 6... Bf5 {[%clk 0:02:58]}
7. Qb3 {[%clk 0:02:38.6]} 7... Na5 {[%clk 0:02:58.6]} 8. Qa4+ {[%clk 0:02:38.9]}
8... Bd7 {[%clk 0:02:59.2]} 9. Qc2 {[%clk 0:02:37.4]} 9... e6 {[%clk 0:02:59.1]}
10. e3 {[%clk 0:02:36.9]} 10... Rc8 {[%clk 0:02:59.5]} 11. Bd3 {[%clk
0:02:35.4]} 11... Bb4 {[%clk 0:02:59.9]} 12. O-O {[%clk 0:02:34.7]} 12... Nh5
{[%clk 0:02:57.5]} 13. a3 {[%clk 0:02:31.4]} 13... Bxc3 {[%clk 0:02:54.1]} 14.
bxc3 {[%clk 0:02:32.3]} 14... Nxf4 {[%clk 0:02:54.5]} 15. exf4 {[%clk
0:02:33.2]} 15... Qc7 {[%clk 0:02:51.8]} 16. Ne5 {[%clk 0:01:56.3]} 16... Qxc3
{[%clk 0:02:43.6]} 17. Qd1 {[%clk 0:01:51]} 17... Nc6 {[%clk 0:02:13.3]} 18.
Nxd7 {[%clk 0:01:32.6]} 18... Kxd7 {[%clk 0:02:12.4]} 19. Bb5 {[%clk 0:01:32.5]}
19... Ke7 {[%clk 0:01:52.7]} 20. Bxc6 {[%clk 0:01:20.4]} 20... Rxc6 {[%clk
0:01:46.1]} 21. a4 {[%clk 0:01:11.4]} 21... Rc4 {[%clk 0:01:35.9]} 22. Qg4
{[%clk 0:01:05.1]} 22... Qxd4 {[%clk 0:01:33.3]} 23. g3 {[%clk 0:01:05.8]} 23...
g6 {[%clk 0:01:25.9]} 24. Rab1 {[%clk 0:00:55]} 24... b6 {[%clk 0:01:13]} 25. a5
{[%clk 0:00:55.4]} 25... Rb8 {[%clk 0:01:10.5]} 26. axb6 {[%clk 0:00:55.5]}
26... axb6 {[%clk 0:01:11]} 27. Rfd1 {[%clk 0:00:45.1]} 27... Qf6 {[%clk
0:01:05.3]} 28. Ra1 {[%clk 0:00:38.7]} 28... Kf8 {[%clk 0:01:02.4]} 29. Ra7
{[%clk 0:00:37.1]} 29... b5 {[%clk 0:01:00.8]} 30. Qf3 {[%clk 0:00:11]} 30... b4
{[%clk 0:00:58.3]} 31. Rb1 {[%clk 0:00:10.9]} 31... Qc3 {[%clk 0:00:46.8]} 32.
Qe2 {[%clk 0:00:08.9]} 32... b3 {[%clk 0:00:39.8]} 33. Ra3 {[%clk 0:00:08.4]}
33... Qc1+ {[%clk 0:00:16.9]} 34. Rxc1 {[%clk 0:00:07.2]} 34... Rxc1+ {[%clk
0:00:17.8]} 35. Kg2 {[%clk 0:00:07.5]} 35... b2 {[%clk 0:00:18.3]} 36. Qe5
{[%clk 0:00:03.8]} 36... b1=Q {[%clk 0:00:18.7]} 37. Qh8+ {[%clk 0:00:03.8]}
37... Ke7 {[%clk 0:00:19.2]} 38. Ra7+ {[%clk 0:00:03.9]} 38... Rb7 {[%clk
0:00:19.9]} 39. Ra8 {[%clk 0:00:03.8]} 39... Rg1+ {[%clk 0:00:13.1]} 40. Kh3
{[%clk 0:00:02.4]} 40... Qf5+ {[%clk 0:00:13.6]} 0-1

[Event "Late-Titled-Tuesday-Blitz-May-14-2024"]
[Site "Chess.com"]
[Date "2024.05.14"]
[Round "9"]
[White "PawnEatingZombie"]
[Black "urano56"]
[Result "0-1"]
[WhiteElo "2307"]
[BlackElo "2438"]
[TimeControl "180+1"]
[EndTime "15:43:22 PDT"]
[Termination "urano56 won on time"]

1. e4 {[%clk 0:02:52.2]} 1... c5 {[%clk 0:02:59.2]} 2. Nc3 {[%clk 0:02:51.4]}
2... a6 {[%clk 0:02:56.3]} 3. g3 {[%clk 0:02:49.2]} 3... b5 {[%clk 0:02:55.7]}
4. Bg2 {[%clk 0:02:49.4]} 4... Bb7 {[%clk 0:02:56.2]} 5. d3 {[%clk 0:02:49.5]}
5... e6 {[%clk 0:02:56.8]} 6. f4 {[%clk 0:02:48.1]} 6... d5 {[%clk 0:02:52.9]}
7. Nh3 {[%clk 0:02:46]} 7... dxe4 {[%clk 0:02:47.6]} 8. Nxe4 {[%clk 0:02:44.3]}
8... Qc8 {[%clk 0:02:45.7]} 9. O-O {[%clk 0:02:42.6]} 9... Be7 {[%clk
0:02:42.3]} 10. Qg4 {[%clk 0:02:17.5]} 10... g6 {[%clk 0:02:25.6]} 11. Qe2
{[%clk 0:02:13.8]} 11... Nf6 {[%clk 0:02:23.9]} 12. b3 {[%clk 0:02:07.3]} 12...
Nxe4 {[%clk 0:02:21.6]} 13. Bxe4 {[%clk 0:02:06.8]} 13... Bf6 {[%clk 0:02:21.5]}
14. Rb1 {[%clk 0:02:01.6]} 14... Nc6 {[%clk 0:02:20.6]} 15. Be3 {[%clk
0:01:40.4]} 15... Nd4 {[%clk 0:02:16]} 16. Qf2 {[%clk 0:01:29.6]} 16... Be7
{[%clk 0:01:48.2]} 17. c3 {[%clk 0:01:23.6]} 17... Nf5 {[%clk 0:01:47.6]} 18.
Bd2 {[%clk 0:01:18.4]} 18... O-O {[%clk 0:01:42]} 19. Ng5 {[%clk 0:01:18]} 19...
f6 {[%clk 0:01:05]} 20. Nf3 {[%clk 0:01:15.5]} 20... Rd8 {[%clk 0:01:01.7]} 21.
Rbd1 {[%clk 0:01:15]} 21... c4 {[%clk 0:00:51.9]} 22. Bxb7 {[%clk 0:01:11.7]}
22... Qxb7 {[%clk 0:00:50.5]} 23. bxc4 {[%clk 0:01:04.7]} 23... bxc4 {[%clk
0:00:49.5]} 24. d4 {[%clk 0:01:04.9]} 24... Nd6 {[%clk 0:00:36.9]} 25. g4 {[%clk
0:01:00.4]} 25... Ne4 {[%clk 0:00:35.2]} 26. Qe3 {[%clk 0:00:59.8]} 26... f5
{[%clk 0:00:35.2]} 27. Ne5 {[%clk 0:00:53.9]} 27... Qd5 {[%clk 0:00:33.8]} 28.
Be1 {[%clk 0:00:50]} 28... Rac8 {[%clk 0:00:34.1]} 29. g5 {[%clk 0:00:38.4]}
29... Rb8 {[%clk 0:00:33.5]} 30. h4 {[%clk 0:00:31.8]} 30... Rb2 {[%clk
0:00:31.1]} 31. h5 {[%clk 0:00:29.3]} 31... Nxc3 {[%clk 0:00:17.2]} 32. Rd2
{[%clk 0:00:23.9]} 32... Rxd2 {[%clk 0:00:17.4]} 33. Qxd2 {[%clk 0:00:23.8]}
33... Qxd4+ {[%clk 0:00:13.8]} 34. Qxd4 {[%clk 0:00:23.7]} 34... Ne2+ {[%clk
0:00:14.4]} 35. Kf2 {[%clk 0:00:20.5]} 35... Nxd4 {[%clk 0:00:15]} 36. hxg6
{[%clk 0:00:20.9]} 36... hxg6 {[%clk 0:00:15.6]} 37. Nxg6 {[%clk 0:00:21.2]}
37... Bc5 {[%clk 0:00:16.4]} 38. Kg3 {[%clk 0:00:19.1]} 38... Nc6 {[%clk
0:00:14.2]} 39. Rh1 {[%clk 0:00:09.6]} 39... Rd1 {[%clk 0:00:14.1]} 40. Rh8+
{[%clk 0:00:01.9]} 40... Kg7 {[%clk 0:00:14.1]} 0-1

[Event "Late-Titled-Tuesday-Blitz-May-14-2024"]
[Site "Chess.com"]
[Date "2024.05.14"]
[Round "9"]
[White "Individoom"]
[Black "hblanco"]
[Result "0-1"]
[WhiteElo "2768"]
[BlackElo "2625"]
[TimeControl "180+1"]
[EndTime "15:43:24 PDT"]
[Termination "hblanco won on time"]

1. d4 {[%clk 0:03:00.9]} 1... d5 {[%clk 0:02:59.2]} 2. Nf3 {[%clk 0:03:00.9]}
2... Nf6 {[%clk 0:02:59.2]} 3. Bf4 {[%clk 0:03:01.3]} 3... c5 {[%clk 0:02:58.3]}
4. e3 {[%clk 0:03:01.2]} 4... Nc6 {[%clk 0:02:58.6]} 5. Nbd2 {[%clk 0:03:01.4]}
5... Bf5 {[%clk 0:02:49]} 6. dxc5 {[%clk 0:02:55]} 6... e6 {[%clk 0:02:46.5]} 7.
Nd4 {[%clk 0:02:54]} 7... Bg6 {[%clk 0:02:38.5]} 8. Bb5 {[%clk 0:02:45.6]} 8...
Qc8 {[%clk 0:02:34.3]} 9. b4 {[%clk 0:02:44]} 9... Be7 {[%clk 0:02:34]} 10. O-O
{[%clk 0:02:33.3]} 10... O-O {[%clk 0:02:33.6]} 11. Nxc6 {[%clk 0:02:32.9]}
11... bxc6 {[%clk 0:02:34.5]} 12. Bd3 {[%clk 0:02:33.1]} 12... a5 {[%clk
0:02:27.9]} 13. a3 {[%clk 0:02:32]} 13... Nd7 {[%clk 0:02:23.7]} 14. Bxg6 {[%clk
0:02:27.2]} 14... hxg6 {[%clk 0:02:24.6]} 15. c4 {[%clk 0:02:06.4]} 15... Bf6
{[%clk 0:02:22.4]} 16. Rb1 {[%clk 0:02:05.9]} 16... axb4 {[%clk 0:02:20.7]} 17.
axb4 {[%clk 0:02:05.8]} 17... Ra2 {[%clk 0:02:19.9]} 18. Bd6 {[%clk 0:02:04.2]}
18... Re8 {[%clk 0:02:18.6]} 19. cxd5 {[%clk 0:02:03.3]} 19... exd5 {[%clk
0:02:17.9]} 20. Nb3 {[%clk 0:02:00.3]} 20... Ne5 {[%clk 0:02:06.4]} 21. Bxe5
{[%clk 0:01:58.6]} 21... Bxe5 {[%clk 0:02:07.3]} 22. Nd4 {[%clk 0:01:55.6]}
22... Bxd4 {[%clk 0:01:59.2]} 23. Qxd4 {[%clk 0:01:39.1]} 23... Re4 {[%clk
0:01:58.9]} 24. Qd3 {[%clk 0:01:39]} 24... Rc4 {[%clk 0:01:25.7]} 25. Rfc1
{[%clk 0:01:25.7]} 25... Qe6 {[%clk 0:01:24.1]} 26. Qb3 {[%clk 0:00:43.3]} 26...
Rd2 {[%clk 0:01:04.2]} 27. Rd1 {[%clk 0:00:31.7]} 27... Rdc2 {[%clk 0:00:58.7]}
28. Ra1 {[%clk 0:00:28.3]} 28... Qf6 {[%clk 0:00:50.7]} 29. Rf1 {[%clk
0:00:27.6]} 29... Rb2 {[%clk 0:00:50.3]} 30. Qa4 {[%clk 0:00:20]} 30... Rcc2
{[%clk 0:00:47]} 31. Qa8+ {[%clk 0:00:13.6]} 31... Kh7 {[%clk 0:00:46.8]} 32.
Kh1 {[%clk 0:00:13.9]} 32... Rxb4 {[%clk 0:00:25.3]} 33. Qc8 {[%clk 0:00:12.5]}
33... g5 {[%clk 0:00:21.5]} 34. Ra8 {[%clk 0:00:09.2]} 34... Rxf2 {[%clk
0:00:20.4]} 35. Rg1 {[%clk 0:00:09.3]} 35... Rh4 {[%clk 0:00:15.5]} 36. Qg8+
{[%clk 0:00:07.8]} 36... Kg6 {[%clk 0:00:15.5]} 37. Rd8 {[%clk 0:00:08.1]} 37...
Qe5 {[%clk 0:00:13.9]} 38. Rd6+ {[%clk 0:00:07.8]} 38... f6 {[%clk 0:00:14.2]}
39. h3 {[%clk 0:00:05]} 39... Rxh3+ {[%clk 0:00:14]} 0-1

[Event "Late-Titled-Tuesday-Blitz-May-14-2024"]
[Site "Chess.com"]
[Date "2024.05.14"]
[Round "9"]
[White "only_strong_moves"]
[Black "GiorgianBarbosa"]
[Result "1-0"]
[WhiteElo "2668"]
[BlackElo "2518"]
[TimeControl "180+1"]
[EndTime "15:43:28 PDT"]
[Termination "only_strong_moves won by checkmate"]

1. Nc3 {[%clk 0:03:00.9]} 1... c5 {[%clk 0:02:58.4]} 2. Nf3 {[%clk 0:03:00.5]}
2... g6 {[%clk 0:02:52]} 3. h4 {[%clk 0:02:57.2]} 3... Bg7 {[%clk 0:02:51.4]} 4.
d4 {[%clk 0:02:56.3]} 4... cxd4 {[%clk 0:02:48]} 5. Nxd4 {[%clk 0:02:57.2]} 5...
Nc6 {[%clk 0:02:48.8]} 6. Nb3 {[%clk 0:02:56.2]} 6... Nf6 {[%clk 0:02:41.9]} 7.
g3 {[%clk 0:02:53.3]} 7... d6 {[%clk 0:02:39.4]} 8. Bg2 {[%clk 0:02:53.5]} 8...
Bg4 {[%clk 0:02:35.2]} 9. Be3 {[%clk 0:02:51.7]} 9... O-O {[%clk 0:02:34.3]} 10.
Qd2 {[%clk 0:02:51.9]} 10... Ne5 {[%clk 0:02:33]} 11. Qd4 {[%clk 0:02:33.9]}
11... Nfd7 {[%clk 0:02:21.9]} 12. O-O-O {[%clk 0:02:33.4]} 12... Rc8 {[%clk
0:02:14.1]} 13. Kb1 {[%clk 0:02:06.4]} 13... Nb6 {[%clk 0:02:00.7]} 14. Bc1
{[%clk 0:01:52.7]} 14... Rc4 {[%clk 0:01:54.1]} 15. Qe3 {[%clk 0:01:50.1]} 15...
Rc7 {[%clk 0:01:50.7]} 16. Nd5 {[%clk 0:01:42.9]} 16... Nxd5 {[%clk 0:01:49.7]}
17. Bxd5 {[%clk 0:01:43.8]} 17... Bf5 {[%clk 0:01:43.6]} 18. Nd4 {[%clk
0:01:43.6]} 18... Bd7 {[%clk 0:01:43.3]} 19. Qb3 {[%clk 0:01:39]} 19... e6
{[%clk 0:01:38.6]} 20. Bg2 {[%clk 0:01:38.4]} 20... d5 {[%clk 0:01:35]} 21. h5
{[%clk 0:01:38.3]} 21... Nc4 {[%clk 0:01:30.9]} 22. e4 {[%clk 0:01:38.2]} 22...
Bc6 {[%clk 0:01:22.3]} 23. exd5 {[%clk 0:01:36.2]} 23... exd5 {[%clk 0:01:23.2]}
24. hxg6 {[%clk 0:01:31.9]} 24... hxg6 {[%clk 0:01:20.2]} 25. g4 {[%clk
0:01:27.4]} 25... Re8 {[%clk 0:01:14]} 26. Qh3 {[%clk 0:01:21.8]} 26... Qf6
{[%clk 0:00:28]} 27. Qh7+ {[%clk 0:01:21.7]} 27... Kf8 {[%clk 0:00:27.6]} 28.
Bh6 {[%clk 0:01:22.3]} 28... Bxh6 {[%clk 0:00:27.1]} 29. Qxh6+ {[%clk
0:01:22.2]} 29... Qg7 {[%clk 0:00:27.2]} 30. Qf4 {[%clk 0:01:22.8]} 30... Rce7
{[%clk 0:00:24.1]} 31. g5 {[%clk 0:01:17.4]} 31... Kg8 {[%clk 0:00:20.8]} 32.
Qf6 {[%clk 0:01:12.4]} 32... Re5 {[%clk 0:00:15.8]} 33. b3 {[%clk 0:00:52.5]}
33... Qxf6 {[%clk 0:00:14.5]} 34. gxf6 {[%clk 0:00:53.4]} 34... Nd6 {[%clk
0:00:15.2]} 35. Kb2 {[%clk 0:00:49.2]} 35... Ne4 {[%clk 0:00:14.5]} 36. Bxe4
{[%clk 0:00:45.1]} 36... Rxe4 {[%clk 0:00:15.4]} 37. Rh3 {[%clk 0:00:43.1]}
37... Re1 {[%clk 0:00:13.6]} 38. Rdd3 {[%clk 0:00:37.9]} 38... R1e4 {[%clk
0:00:08.9]} 39. Rh2 {[%clk 0:00:36.2]} 39... Bd7 {[%clk 0:00:06.9]} 40. Rd1
{[%clk 0:00:19.1]} 40... Rf4 {[%clk 0:00:06.9]} 41. Rdh1 {[%clk 0:00:08]} 41...
Rxf6 {[%clk 0:00:06.9]} 42. Rh8+ {[%clk 0:00:08.4]} 42... Kg7 {[%clk 0:00:07.3]}
43. R1h7# {[%clk 0:00:09.3]} 1-0

[Event "Late-Titled-Tuesday-Blitz-May-14-2024"]
[Site "Chess.com"]
[Date "2024.05.14"]
[Round "9"]
[White "StoreySniper"]
[Black "FaustinoOro"]
[Result "1/2-1/2"]
[WhiteElo "2555"]
[BlackElo "2917"]
[TimeControl "180+1"]
[EndTime "15:43:31 PDT"]
[Termination "Game drawn by repetition"]

1. e4 {[%clk 0:03:00.9]} 1... e5 {[%clk 0:02:59.6]} 2. Nf3 {[%clk 0:03:00.6]}
2... Nc6 {[%clk 0:02:59.7]} 3. Nc3 {[%clk 0:03:01.2]} 3... Nf6 {[%clk
0:02:59.8]} 4. Bb5 {[%clk 0:03:01.4]} 4... Bb4 {[%clk 0:02:56.9]} 5. Bxc6 {[%clk
0:03:01]} 5... bxc6 {[%clk 0:02:56]} 6. d3 {[%clk 0:03:01.4]} 6... d6 {[%clk
0:02:55.3]} 7. Bd2 {[%clk 0:03:00.4]} 7... O-O {[%clk 0:02:54.4]} 8. Ne2 {[%clk
0:03:00.6]} 8... Bc5 {[%clk 0:02:51.1]} 9. Bg5 {[%clk 0:02:58.7]} 9... Rb8
{[%clk 0:02:48.2]} 10. b3 {[%clk 0:02:58.1]} 10... Bb6 {[%clk 0:02:45.9]} 11.
O-O {[%clk 0:02:56.5]} 11... h6 {[%clk 0:02:45.2]} 12. Bh4 {[%clk 0:02:56.5]}
12... Bg4 {[%clk 0:02:43.9]} 13. Ng3 {[%clk 0:02:56.4]} 13... g5 {[%clk
0:02:41.3]} 14. Qd2 {[%clk 0:02:55.7]} 14... gxh4 {[%clk 0:02:21.6]} 15. Nxh4
{[%clk 0:02:41.8]} 15... Nxe4 {[%clk 0:02:10.9]} 16. Qxh6 {[%clk 0:02:36.5]}
16... Qf6 {[%clk 0:02:10.6]} 17. Ngf5 {[%clk 0:02:03.1]} 17... Bxf5 {[%clk
0:01:57.5]} 18. Nxf5 {[%clk 0:02:03]} 18... Qxf5 {[%clk 0:01:52]} 19. dxe4
{[%clk 0:02:01.8]} 19... Qxe4 {[%clk 0:01:52.9]} 20. Rad1 {[%clk 0:01:54.6]}
20... Qg6 {[%clk 0:01:50.2]} 21. Qh3 {[%clk 0:01:44.7]} 21... e4 {[%clk
0:01:49.9]} 22. Qc3 {[%clk 0:01:23.8]} 22... d5 {[%clk 0:01:44.1]} 23. Kh1
{[%clk 0:01:20.1]} 23... f5 {[%clk 0:01:41.1]} 24. a4 {[%clk 0:01:12.2]} 24...
a5 {[%clk 0:01:40.2]} 25. f4 {[%clk 0:01:00]} 25... Rbe8 {[%clk 0:01:36.6]} 26.
Rde1 {[%clk 0:00:58.2]} 26... Qf6 {[%clk 0:01:32.7]} 27. Qd2 {[%clk 0:00:43.8]}
27... Kf7 {[%clk 0:01:31.3]} 28. c4 {[%clk 0:00:39.8]} 28... Rh8 {[%clk
0:01:31]} 29. g3 {[%clk 0:00:36.9]} 29... d4 {[%clk 0:01:23.7]} 30. c5 {[%clk
0:00:34.7]} 30... Bxc5 {[%clk 0:01:23.5]} 31. Qxa5 {[%clk 0:00:34.8]} 31... Bd6
{[%clk 0:01:19.9]} 32. Qa6 {[%clk 0:00:25.7]} 32... Rh3 {[%clk 0:01:18.4]} 33.
Qxc6 {[%clk 0:00:21.3]} 33... Reh8 {[%clk 0:01:18.4]} 34. Qd7+ {[%clk
0:00:20.1]} 34... Kg6 {[%clk 0:01:14.1]} 35. Re2 {[%clk 0:00:19.4]} 35... d3
{[%clk 0:01:13.6]} 36. Rg2 {[%clk 0:00:19.7]} 36... e3 {[%clk 0:01:12.5]} 37. g4
{[%clk 0:00:19.8]} 37... Rxh2+ {[%clk 0:00:40.3]} 38. Rxh2 {[%clk 0:00:19.3]}
38... Rxh2+ {[%clk 0:00:40.5]} 39. Kxh2 {[%clk 0:00:19.9]} 39... Qh4+ {[%clk
0:00:41.2]} 40. Kg2 {[%clk 0:00:20.2]} 40... Qxg4+ {[%clk 0:00:41.6]} 41. Kh1
{[%clk 0:00:17.5]} 41... e2 {[%clk 0:00:21.3]} 42. Qe8+ {[%clk 0:00:15.9]} 42...
Kg7 {[%clk 0:00:15.3]} 43. Rg1 {[%clk 0:00:15]} 43... Qxg1+ {[%clk 0:00:07.9]}
44. Kxg1 {[%clk 0:00:15.1]} 44... Bc5+ {[%clk 0:00:08.6]} 45. Kg2 {[%clk
0:00:14.4]} 45... Bb4 {[%clk 0:00:09.1]} 46. Qd7+ {[%clk 0:00:13.6]} 46... Kg6
{[%clk 0:00:07.9]} 47. Qe8+ {[%clk 0:00:13]} 47... Kg7 {[%clk 0:00:07.8]} 48.
Qd7+ {[%clk 0:00:12.7]} 48... Kg6 {[%clk 0:00:07.7]} 49. Qe8+ {[%clk 0:00:13]}
49... Kg7 {[%clk 0:00:08.2]} 1/2-1/2